bitfinex/quotes_SOLUSD_20240705
["timestamp","ask_amount","ask_price","bid_price","bid_amount"]
[1720148838136,100.0,123.98,123.8,15.0]
[1720148838324,100.0,123.92,123.62,40.2072458]
[1720148838517,8.0728,123.88,123.71,20.207]
[1720148838729,100.0,123.89,123.71,20.207]
[1720148839037,33.3099,123.9,123.72,42.28334863]
[1720148839234,33.3099,123.9,123.72,20.2058]
[1720148839235,120.0,123.89,123.72,20.2058]
[1720148839438,20.17,123.89,123.71,8.083]
[1720148839612,20.17,123.89,123.71,20.2075]
[1720148839936,0.17,123.89,123.78,8.0787]
[1720148840104,20.17,123.89,123.76,8.08]
[1720148840310,0.17,123.89,123.77,8.0792]
[1720148840534,33.3099,123.9,123.7,96.06903314]
[1720148840735,12.0539,123.97,123.86,20.1834]
[1720148840951,12.0539,123.97,123.89,20.1787]
[1720148841117,12.0539,123.97,123.78,40.49107301]
[1720148841118,0.1,123.99,123.85,40.3687]
[1720148841311,0.1,123.99,123.88,28.2517]
[1720148841507,0.1,123.99,123.9,8.0706]
[1720148841744,0.1,123.99,123.74,32.346108]
[1720148841912,8.0679,123.95,123.8,28.2703]
[1720148842112,0.1,123.99,123.75,40.70425365]
[1720148842113,100.0,123.98,123.75,40.402]
[1720148842416,0.1,123.99,123.95,8.0674]
[1720148842734,0.1,123.99,123.79,40.47250115]
[1720148843039,0.1,123.99,123.98,8.0658]
[1720148843234,0.1,123.99,123.97,20.1659]
[1720148843431,0.1,123.99,123.98,28.0658]
[1720148843614,0.1,123.99,123.98,8.0658]
[1720148843810,0.1,123.99,123.97,20.1659]
[1720148844151,0.2149347,124.06,124.04,8.0618]
[1720148844314,0.2149347,124.06,124.05,120.17]
[1720148844513,0.2149347,124.06,124.04,8.0618]
[1720148844708,0.2149347,124.06,124.05,20.0]
[1720148844936,0.2149347,124.06,124.02,28.2199]
[1720148845137,0.2149347,124.06,124.02,20.1571]
[1720148845511,0.2149347,124.06,123.97,20.1657]
[1720148845741,0.2149347,124.06,123.99,8.0649]
[1720148845945,0.2149347,124.06,123.97,20.1657]
[1720148846115,0.2149347,124.06,123.81,40.29727471]
[1720148846317,30.7139,124.04,123.87,20.1816]
[1720148846623,30.7139,124.04,123.91,20.1753]
[1720148846820,30.7139,124.04,123.88,1.86733371]
[1720148847138,30.7139,124.04,123.79,100.0]
[1720148847440,0.2149347,124.06,123.93,20.171]
[1720148847621,0.2149347,124.06,123.88,1.86733371]
[1720148847824,100.2149347,124.06,123.88,1.86733371]
[1720148848024,20.0,124.05,123.88,1.86733371]
[1720148848328,0.2149347,124.06,123.88,1.86733371]
[1720148848925,8.2758347,124.06,123.91,8.0701]
[1720148849235,0.2149347,124.06,123.88,1.86733371]
[1720148849440,8.0627,124.03,123.88,9.93923371]
[1720148849613,12.3789,124.05,123.88,1.86733371]
[1720148849813,100.0,123.95,123.73,8.0817]
[1720148850013,20.0,123.94,123.75,20.202]
[1720148850313,15.0,123.99,123.78,20.196]
[1720148850314,100.0,123.99,123.78,20.196]
[1720148850514,46.2683,124.0,123.87,8.0728]
[1720148850717,31.2683,124.0,123.73,155.21700697]
[1720148850922,31.2683,124.0,123.73,15.0]
[1720148851116,31.2683,124.0,123.8,20.1934]
[1720148851315,8.0704,123.91,123.76,8.0797]
[1720148851516,20.1662,123.97,123.76,20.2001]
[1720148851716,20.1731,123.93,123.71,20.3079]
[1720148851937,8.0718,123.89,123.74,8.0811]
[1720148852122,100.0,123.9,123.71,0.1]
[1720148852326,8.0748,123.85,123.71,8.183]
[1720148852626,0.17,123.84,123.71,0.1]
[1720148853529,100.0,123.82,123.61,32.483672]
[1720148853733,8.08,123.77,123.62,8.0891]
[1720148853932,57.5489,123.81,123.68,20.2134]
[1720148853933,12.5489,123.81,123.68,20.2134]
[1720148854234,12.5489,123.81,123.63,20.2204]
[1720148854560,12.5489,123.81,123.66,20.2161]
[1720148854561,12.3789,123.81,123.66,20.2161]
[1720148854717,0.17,123.8,123.61,0.1]
[1720148854918,8.079,123.78,123.65,20.2176]
[1720148855122,0.17,123.77,123.65,20.2176]
[1720148855323,0.17,123.8,123.65,20.2176]
[1720148855547,8.079,123.78,123.65,20.2176]
[1720148855856,112.3789,123.81,123.73,20.2045]
[1720148855857,12.3789,123.81,123.73,20.2045]
[1720148856165,12.3789,123.81,123.68,40.4243]
[1720148856166,12.1773,123.9,123.8,8.0775]
[1720148856339,0.1,123.99,123.73,100.0]
[1720148856521,0.1,123.99,123.87,20.1822]
[1720148856726,0.1,123.99,123.9,20.1772]
[1720148857332,0.1,123.99,123.96,8.067]
[1720148857643,0.1,123.99,123.96,8.0669]
[1720148857859,0.1,123.99,123.84,40.3726]
[1720148858024,0.1,123.99,123.78,100.0]
[1720148858025,0.1,123.99,123.85,20.0]
[1720148858219,0.1,123.99,123.86,0.17]
[1720148858423,0.1,123.99,123.98,8.0658]
[1720148858624,0.1,123.99,123.98,28.0658]
[1720148859651,0.1,123.99,123.98,20.0]
[1720148860038,0.1,123.99,123.97,8.0663]
[1720148860223,0.1,123.99,123.98,20.0]
[1720148860753,0.1,123.99,123.98,20.17]
[1720148860952,0.2149347,124.06,124.05,8.0612]
[1720148861261,0.2149347,124.06,124.05,28.2312]
[1720148861440,0.1,124.09,124.08,20.1482]
[1720148861643,0.1,124.09,124.08,48.2075]
[1720148862149,0.1,124.09,124.08,48.3775]
[1720148862674,0.1,124.09,124.08,48.2075]
[1720148862854,0.1,124.09,124.08,48.3775]
[1720148863056,0.90593166,124.09,124.08,48.3775]
[1720148863361,0.90593166,124.09,124.08,48.2075]
[1720148863934,0.90593166,124.09,124.06,3.227297]
[1720148864127,0.90593166,124.09,124.01,8.0637]
[1720148864435,0.90593166,124.09,123.97,3.22939]
[1720148864952,0.90593166,124.09,123.98,20.1643]
[1720148865126,0.90593166,124.09,123.97,3.22939]
[1720148865327,0.90593166,124.09,124.03,8.062]
[1720148865547,0.90593166,124.09,124.02,8.0626]
[1720148865830,0.17,124.08,123.92,8.1527]
[1720148866152,2.03407595,124.08,123.95,8.0675]
[1720148866459,1.86407595,124.07,123.87,15.0]
[1720148866636,1.86407595,124.07,123.96,20.1674]
[1720148866836,0.90593166,124.09,124.01,8.0636]
[1720148867142,2.77000761,124.09,123.96,8.0665]
[1720148867344,0.17,124.08,123.96,8.0665]
[1720148867530,0.17,124.08,123.89,40.3561]
[1720148867732,0.17,124.08,123.93,20.1724]
[1720148867945,0.17,124.08,123.9,8.2283]
[1720148868130,20.1535,124.05,123.9,8.2283]
[1720148868356,8.0649,124.0,123.86,8.0735]
[1720148868535,0.17,123.99,123.88,20.1798]
[1720148868878,0.17,124.04,123.94,8.0679]
[1720148869036,32.1026,124.08,123.85,40.3694]
[1720148869369,32.1026,124.08,123.86,40.46202192]
[1720148869568,32.1026,124.08,123.87,20.0]
[1720148869747,2.77000761,124.09,123.89,40.356]
[1720148869949,0.90593166,124.09,123.94,55.74800072]
[1720148870161,0.90593166,124.09,124.08,8.0593]
[1720148870366,0.90593166,124.09,124.08,28.0593]
[1720148870577,0.90593166,124.09,124.08,20.0]
[1720148871167,0.00593167,124.09,124.08,28.0593]
[1720148871578,0.00593167,124.09,124.08,20.0]
[1720148871876,0.00593167,124.09,124.08,28.0593]
[1720148872675,0.00593167,124.09,124.08,31.28661]
[1720148872855,0.1,124.19,124.16,8.0534]
[1720148873054,0.1,124.19,124.17,20.0]
[1720148873572,0.1,124.19,124.12,20.0]
[1720148873764,0.1,124.19,124.07,20.1487]
[1720148873972,0.1,124.19,124.08,8.0592]
[1720148874273,1.86407595,124.18,124.07,8.0597]
[1720148874475,1.86407595,124.18,124.02,28.2209]
[1720148874674,1.86407595,124.18,123.99,8.0514]
[1720148874878,8.0547,124.16,124.01,8.0635]
[1720148875068,0.17,124.15,124.01,20.1594]
[1720148875270,0.17,124.17,124.05,20.1527]
[1720148875583,0.17,124.17,124.01,40.3175]
[1720148875584,1.86407595,124.16,124.01,20.1584]
[1720148875790,8.0567,124.12,123.99,8.065]
[1720148875982,12.4377,124.15,123.97,9.917076]
[1720148876469,1.86407595,124.14,124.01,20.1581]
[1720148876659,0.17,124.13,124.03,8.0624]
[1720148876859,0.17,124.13,124.01,20.1581]
[1720148877056,0.17,124.13,124.03,8.0623]
[1720148877258,0.17,124.13,124.04,20.0]
[1720148877450,8.2261,124.13,124.02,20.0]
[1720148877650,0.17,124.13,124.0,20.0]
[1720148877850,2.03407595,124.13,123.99,20.1625]
[1720148878159,0.17,124.13,124.0,20.0]
[1720148878480,1.86407595,124.12,124.0,20.0]
[1720148878682,0.17,124.11,123.95,20.1679]
[1720148878857,0.17,124.11,124.0,8.0644]
[1720148879053,0.17,124.11,124.04,20.154]
[1720148879356,0.17,124.11,124.0,20.1599]
[1720148879872,12.2677,124.15,124.08,8.0589]
[1720148880182,12.2677,124.15,124.04,8.0614]
[1720148880379,13.2677,124.15,124.05,20.0]
[1720148880563,9.91977595,124.14,124.04,20.0]
[1720148880757,8.056,124.13,124.01,20.0]
[1720148880989,1.86407595,124.14,123.98,20.1633]
[1720148881152,1.86407595,124.14,124.0,20.1598]
[1720148881476,1.86407595,124.14,124.07,8.0598]
[1720148881779,1.86407595,124.14,123.94,60.503]
[1720148881780,1.86407595,124.14,124.08,8.0588]
[1720148881978,13.2677,124.15,124.06,20.1503]
[1720148882172,1.0,124.15,124.01,40.60411676]
[1720148882478,1.0,124.15,124.02,20.0]
[1720148882661,1.0,124.15,123.97,8.0663]
[1720148882866,1.86407595,124.14,123.94,20.1625]
[1720148883064,0.80684203,123.95,123.94,20.1625]
[1720148883454,0.80684203,123.95,123.88,8.0723]
[1720148883660,0.80684203,123.95,123.84,20.1865]
[1720148883858,0.80684203,123.95,123.81,0.1]
[1720148884074,0.80684203,123.95,123.82,15.0]
[1720148884373,0.80684203,123.95,123.82,32.320188]
[1720148884584,8.0708,123.91,123.82,32.320188]
[1720148884790,0.17,123.94,123.81,0.1]
[1720148885096,0.17,123.94,123.83,8.0752]
[1720148885382,113.0703,123.93,123.71,0.1]
[1720148885594,100.0,123.89,123.71,0.1]
[1720148885768,0.17,123.88,123.8,8.0773]
[1720148885969,13.0703,123.93,123.71,20.3071]
[1720148886288,8.0789,123.78,123.71,0.1]
[1720148886580,100.0,123.86,123.61,0.1]
[1720148886581,0.17,123.77,123.61,0.1]
[1720148886787,113.0703,123.93,123.73,20.2045]
[1720148887091,0.17,123.92,123.67,100.0]
[1720148887385,0.17,123.92,123.69,32.355669]
[1720148887584,13.0703,123.93,123.8,20.1928]
[1720148887785,100.0,124.03,123.81,20.0]
[1720148887957,12.4353,124.06,123.8,35.0]
[1720148888154,12.4353,124.06,123.87,20.1821]
[1720148888392,12.4353,124.06,123.88,20.0]
[1720148888776,8.0633,124.02,123.88,40.1799]
[1720148888993,20.1971,123.78,123.53,1.40663755]
[1720148889282,45.8237,123.92,123.57,112.4353]
[1720148889283,20.1789,123.9,123.57,112.4353]
[1720148889468,86.1747,123.92,123.62,15.0]
[1720148889656,8.0744,123.85,123.62,15.0]
[1720148889853,15.0,123.86,123.63,20.2203]
[1720148890069,20.0,123.85,123.62,15.0]
[1720148890376,20.0,123.85,123.57,66.00594492]
[1720148890377,0.17,123.84,123.63,15.0]
[1720148890577,1.86407595,123.84,123.72,8.0824]
[1720148890781,1.86407595,123.84,123.69,20.2116]
[1720148890967,1.86407595,123.84,123.68,8.0852]
[1720148891167,1.86407595,123.84,123.64,20.2193]
[1720148891372,8.0787,123.79,123.64,28.3069]
[1720148891571,20.0,123.78,123.57,12.4353]
[1720148891778,20.2051,123.74,123.51,0.1]
[1720148891961,21.86407595,123.73,123.51,0.1]
[1720148892169,21.86407595,123.73,123.53,20.2367]
[1720148892361,0.17,123.72,123.53,20.2367]
[1720148892567,20.17,123.72,123.51,0.1]
[1720148892769,120.17,123.72,123.51,0.1]
[1720148892969,20.212,123.69,123.51,0.1]
[1720148893176,8.089,123.63,123.51,0.1]
[1720148893376,0.17,123.62,123.51,0.1]
[1720148893686,8.2594,123.62,123.51,0.1]
[1720148893866,20.0,123.65,123.51,0.1]
[1720148894186,1.86407595,123.71,123.51,0.1]
[1720148894386,20.2132,123.69,123.51,0.1]
[1720148894584,160.4286,123.68,123.51,0.1]
[1720148894915,21.86407595,123.68,123.51,0.1]
[1720148895198,1.86407595,123.68,123.59,8.091]
[1720148895399,1.86407595,123.68,123.61,20.2237]
[1720148895697,1.86407595,123.68,123.61,8.0899]
[1720148895870,1.86407595,123.68,123.62,20.222]
[1720148896067,1.86407595,123.68,123.63,20.0]
[1720148896289,1.86407595,123.68,123.62,0.17]
[1720148896775,1.86407595,123.68,123.56,20.2325]
[1720148896976,9.94987595,123.68,123.57,20.0]
[1720148897287,8.0865,123.67,123.53,8.0951]
[1720148897600,20.2092,123.71,123.51,0.1]
[1720148897797,40.4203,123.71,123.51,0.1]
[1720148897996,20.2143,123.68,123.51,0.1]
[1720148898171,8.0953,123.53,123.51,0.1]
[1720148898482,20.0,123.52,123.51,0.1]
[1720148898680,0.17,123.52,123.51,0.1]
[1720148899073,0.17,123.52,123.46,0.04799471]
[1720148899265,0.17,123.53,123.46,0.04799471]
[1720148899462,8.0978,123.5,123.46,0.04799471]
[1720148899666,8.0964,123.52,123.46,0.04799471]
[1720148899889,20.0,123.51,123.46,0.04799471]
[1720148900091,0.17,123.5,123.46,0.04799471]
[1720148900392,0.17,123.5,123.43,0.2149347]
[1720148900592,8.1024,123.42,123.41,0.1]
[1720148900892,8.1024,123.42,123.31,0.1]
[1720148900893,8.1089,123.32,123.31,0.1]
[1720148901081,28.1089,123.32,123.31,0.1]
[1720148901411,0.17,123.32,123.31,0.1]
[1720148901611,0.17,123.32,123.21,0.1]
[1720148901894,12.9243,123.36,123.21,0.1]
[1720148901895,8.1153,123.23,123.21,0.1]
[1720148902113,20.17,123.22,123.21,0.1]
[1720148902399,20.2758,123.3,123.21,0.1]
[1720148902687,100.0,123.25,123.11,0.1]
[1720148902888,0.17,123.24,123.11,0.1]
[1720148903095,0.80684203,123.12,123.11,0.1]
[1720148903291,0.80684203,123.12,123.01,0.1]
[1720148903292,20.97684203,123.12,123.01,0.1]
[1720148903473,0.17,123.11,123.01,0.1]
[1720148903676,8.2929,123.11,123.01,0.1]
[1720148903880,0.17,123.11,123.01,0.1]
[1720148904081,0.80684203,123.12,123.02,8.1284]
[1720148904268,0.80684203,123.12,123.01,20.4224]
[1720148904481,8.1234,123.1,123.01,0.1]
[1720148904788,0.80684203,123.12,123.01,0.1]
[1720148904991,0.80684203,123.12,123.1,8.1231]
[1720148905382,32.7963,123.33,123.15,20.3003]
[1720148905592,32.7963,123.43,123.21,20.2891]
[1720148905779,0.1,123.39,123.17,80.99711303]
[1720148905974,0.1,123.39,123.27,20.2795]
[1720148906311,0.1,123.39,123.34,8.1072]
[1720148906469,0.1,123.39,123.35,20.0]
[1720148906890,0.1,123.39,123.27,15.0]
[1720148907095,0.1,123.39,123.32,8.1087]
[1720148907293,0.1,123.39,123.33,20.0]
[1720148907805,0.1,123.39,123.21,8.1157]
[1720148907994,0.1,123.39,123.22,20.0]
[1720148908498,0.1,123.39,123.21,20.0]
[1720148908805,100.0,123.37,123.12,31.5434]
[1720148908988,100.0,123.35,123.17,20.296]
[1720148909172,8.1112,123.29,123.14,8.1202]
[1720148909377,20.2663,123.36,123.13,20.3035]
[1720148909569,45.0,123.35,123.12,20.3048]
[1720148909776,20.2716,123.33,123.12,20.3048]
[1720148910078,20.17,123.34,123.23,8.1148]
[1720148910079,20.17,123.32,123.23,8.1148]
[1720148910281,8.1033,123.41,123.16,40.8712965]
[1720148910500,132.3911,123.46,123.24,20.2844]
[1720148910704,8.10301009,123.45,123.23,100.0]
[1720148910997,8.198,123.49,123.33,8.1078]
[1720148911205,0.1,123.49,123.37,8.1054]
[1720148911707,0.1,123.49,123.38,20.0]
[1720148912015,0.1,123.49,123.38,28.105]
[1720148912182,0.1,123.49,123.38,20.0]
[1720148912373,0.1,123.49,123.36,20.0]
[1720148912580,0.1,123.49,123.37,8.1052]
[1720148912773,0.1,123.49,123.29,15.0]
[1720148912774,0.1,123.49,123.26,15.0]
[1720148913075,8.101,123.45,123.32,8.1089]
[1720148913295,20.2552,123.43,123.22,20.2887]
[1720148913876,8.107,123.36,123.22,8.1155]
[1720148914093,8.1032,123.41,123.27,28.3919]
[1720148914305,1.86407595,123.42,123.16,15.0]
[1720148914306,20.17,123.4,123.16,15.0]
[1720148914602,35.17,123.4,123.17,20.2965]
[1720148914807,8.1123,123.27,123.13,13.1775]
[1720148914995,55.5277,123.38,123.11,30.3747]
[1720148914996,100.0,123.33,123.11,0.1]
[1720148915205,0.17,123.32,123.11,0.1]
[1720148915418,8.1149,123.23,123.11,0.1]
[1720148915595,0.17,123.22,123.11,0.1]
[1720148916926,8.1183,123.18,123.11,0.1]
[1720148917092,8.1196,123.16,123.11,0.1]
[1720148917298,0.17,123.22,123.11,0.1]
[1720148917798,20.0,123.27,123.11,0.1]
[1720148917999,8.1158,123.22,123.11,0.1]
[1720148918237,40.5727,123.24,123.11,0.1]
[1720148918523,8.1206,123.15,123.11,0.1]
[1720148918732,8.1185,123.18,123.11,0.1]
[1720148919024,8.1234,123.1,123.09,0.04813898]
[1720148919329,0.17,123.1,123.09,0.04813898]
[1720148919531,8.2934,123.1,123.09,0.04813898]
[1720148919704,20.17,123.1,123.01,0.1]
[1720148919909,0.17,123.09,123.01,0.1]
[1720148920606,8.1265,123.06,123.01,0.1]
[1720148920812,0.17,123.05,122.93,0.2149347]
[1720148921304,8.1221,123.12,122.98,8.1313]
[1720148921627,20.2991,123.16,122.97,20.3294]
[1720148921924,20.2991,123.16,122.99,8.1306]
[1720148922125,15.0,123.14,122.93,0.2149347]
[1720148922297,115.0,123.09,122.93,0.2149347]
[1720148922497,100.0,123.05,122.93,0.2149347]
[1720148922728,32.1664,123.04,122.93,0.2149347]
[1720148922915,8.1323,122.97,122.93,0.2149347]
[1720148923124,0.81347109,122.95,122.93,0.2149347]
[1720148923424,8.1353,122.92,122.91,0.1]
[1720148923635,0.17,122.94,122.91,0.1]
[1720148924103,8.1353,122.93,122.91,0.1]
[1720148924307,0.81347109,122.95,122.81,0.1]
[1720148924308,8.1389,122.87,122.81,0.1]
[1720148924513,8.1387,122.87,122.81,0.1]
[1720148924713,0.81347109,122.95,122.81,0.1]
[1720148924922,0.81347109,122.95,122.85,8.1395]
[1720148925221,8.1394,122.86,122.81,0.1]
[1720148925424,20.3396,122.92,122.81,0.1]
[1720148925425,8.1404,122.85,122.81,0.1]
[1720148925726,20.3396,122.92,122.81,0.1]
[1720148925929,0.81347109,122.95,122.81,0.1]
[1720148926463,100.17,122.94,122.81,0.1]
[1720148926610,8.1405,122.85,122.81,0.1]
[1720148926809,8.1417,122.83,122.81,0.1]
[1720148927012,20.17,122.82,122.81,0.1]
[1720148927236,8.1464,122.76,122.72,0.04828412]
[1720148927528,0.17,122.81,122.72,0.04828412]
[1720148928209,20.3392,122.92,122.72,0.04828412]
[1720148928529,100.0,122.85,122.72,0.04828412]
[1720148928742,100.0,122.83,122.72,0.04828412]
[1720148928960,0.17,122.84,122.72,0.04828412]
[1720148928961,6.3935,122.74,122.72,0.04828412]
[1720148929227,0.17,122.82,122.72,0.04828412]
[1720148929405,8.1442,122.79,122.72,0.04828412]
[1720148929604,35.3398,122.92,122.72,0.04828412]
[1720148929800,32.2174,122.97,122.72,0.04828412]
[1720148929801,0.81347109,122.95,122.72,0.04828412]
[1720148930031,0.81347109,122.95,122.72,8.19678412]
[1720148930293,8.1351,122.93,122.76,20.3633]
[1720148930540,0.81347109,122.95,122.79,20.3583]
[1720148930703,0.81347109,122.95,122.77,20.0]
[1720148931009,0.81347109,122.95,122.73,33.0593]
[1720148931010,21.14817109,122.95,122.73,33.0593]
[1720148931213,8.1429,122.81,122.72,0.04828412]
[1720148931429,8.1422,122.82,122.72,0.04828412]
[1720148931728,35.3388,122.92,122.72,0.04828412]
[1720148931932,20.3445,122.89,122.72,0.04828412]
[1720148932103,20.0,122.88,122.72,0.04828412]
[1720148932307,100.0,122.84,122.72,0.04828412]
[1720148932614,8.1428,122.81,122.72,0.04828412]
[1720148932817,0.17,122.8,122.72,0.04828412]
[1720148933022,20.0,122.82,122.72,0.04828412]
[1720148933208,8.1411,122.84,122.72,0.04828412]
[1720148933399,15.0,122.83,122.73,20.3691]
[1720148933604,15.0,122.83,122.76,20.3638]
[1720148933833,0.81347109,122.95,122.79,8.1434]
[1720148934052,8.07824349,122.91,122.73,53.32932505]
[1720148934258,0.81347109,122.95,122.74,20.0]
[1720148934436,0.81347109,122.95,122.8,20.357]
[1720148934640,0.81347109,122.95,122.81,20.0]
[1720148934822,0.81347109,122.95,122.77,8.145]
[1720148935025,33.41899109,122.95,122.78,20.0]
[1720148935226,33.41899109,122.95,122.79,8.1436]
[1720148935424,0.81347109,122.95,122.83,8.141]
[1720148935658,0.81347109,122.95,122.83,8.1411]
[1720148935855,0.81347109,122.95,122.85,8.1394]
[1720148936024,0.81347109,122.95,122.82,20.3535]
[1720148936222,0.81347109,122.95,122.83,20.0]
[1720148936453,0.81347109,122.95,122.8,0.17]
[1720148936852,0.81347109,122.95,122.81,20.355]
[1720148937056,0.81347109,122.95,122.84,8.1404]
[1720148937230,0.81347109,122.95,122.87,8.1383]
[1720148937432,0.81347109,122.95,122.85,20.17]
[1720148937433,0.81347109,122.95,122.9,8.1361]
[1720148937649,0.81347109,122.95,122.86,15.0]
[1720148937650,0.81347109,122.95,122.88,35.0]
[1720148937971,0.81347109,122.95,122.81,20.3562]
[1720148938277,0.81347109,122.95,122.84,8.1405]
[1720148938563,0.81347109,122.95,122.84,8.1404]
[1720148938767,0.81347109,122.95,122.86,8.1392]
[1720148938942,0.81347109,122.95,122.83,20.3519]
[1720148939149,0.81347109,122.95,122.84,20.0]
[1720148939350,20.3409,122.91,122.73,13.1741]
[1720148939547,0.81347109,122.95,122.73,53.9139]
[1720148939732,0.81347109,122.95,122.76,15.0]
[1720148939952,0.81347109,122.95,122.74,15.0]
[1720148940162,0.81347109,122.95,122.82,20.3541]
[1720148940462,0.81347109,122.95,122.76,15.0]
[1720148940638,0.81347109,122.95,122.85,8.1398]
[1720148940972,0.81347109,122.95,122.87,20.3461]
[1720148941285,0.81347109,122.95,122.87,8.1383]
[1720148941572,20.3147,123.01,122.89,15.0]
[1720148941884,0.1,123.09,123.01,8.1293]
[1720148942166,0.1,123.09,123.0,8.1297]
[1720148942489,8.14262904,123.19,123.0,15.0]
[1720148942636,8.14262904,123.19,122.94,100.0]
[1720148942637,0.1,123.19,123.04,12.0323]
[1720148942838,0.1,123.19,123.12,28.4259]
[1720148943087,0.81221573,123.14,123.12,20.3041]
[1720148943366,0.81221573,123.14,123.12,8.1219]
[1720148943569,0.1,123.19,123.08,15.0]
[1720148943781,0.1,123.19,123.17,8.1186]
[1720148943940,0.1,123.19,123.14,20.302]
[1720148944142,0.1,123.19,123.15,0.17]
[1720148944371,50.7542,123.36,123.2,8.1166]
[1720148944372,30.4883,123.36,123.2,8.1166]
[1720148944669,32.8273,123.41,123.22,8.1153]
[1720148944670,8.1053,123.38,123.22,8.1153]
[1720148944983,12.5684,123.41,123.18,15.0]
[1720148945145,8.1097,123.31,123.18,15.0]
[1720148945346,20.2677,123.35,123.15,0.17]
[1720148945556,1.86407595,123.34,123.15,0.17]
[1720148945766,15.0,123.31,123.07,15.0]
[1720148945966,100.0,123.32,123.01,100.0]
[1720148945967,40.5639,123.27,123.01,15.0]
[1720148946138,40.5639,123.27,122.98,100.0]
[1720148946338,20.2861,123.24,123.05,8.0565685]
[1720148946549,15.0,123.24,123.03,8.1274]
[1720148946863,20.2919,123.21,123.02,20.3208]
[1720148947067,20.2964,123.18,123.01,0.1]
[1720148947378,8.1236,123.1,123.01,0.1]
[1720148947577,0.17,123.17,123.01,0.1]
[1720148947933,20.2781,123.29,123.02,15.0]
[1720148948056,8.111,123.29,123.15,8.1197]
[1720148948389,12.1707,123.35,123.14,20.3013]
[1720148948687,60.8138,123.33,123.12,12.7331]
[1720148948978,8.1101,123.31,123.17,8.1186]
[1720148949210,20.23436469,123.35,123.15,20.2997]
[1720148949381,8.06366469,123.35,123.15,28.4197]
[1720148949578,8.1145,123.24,123.14,0.17]
[1720148949915,8.1192,123.17,123.04,12.7331]
[1720148950073,20.2937,123.2,122.99,30.4443]
[1720148950272,20.3023,123.14,122.94,40.6304]
[1720148950501,8.1231,123.11,122.97,8.1314]
[1720148950798,28.124,123.1,122.96,8.1327]
[1720148950971,20.17,123.09,122.93,20.2964]
[1720148951388,8.1287,123.02,122.93,20.2964]
[1720148951693,20.0,123.02,122.93,20.2964]
[1720148951868,20.17,123.01,122.91,0.1]
[1720148952684,20.0,123.02,122.91,0.1]
[1720148952863,100.0,123.17,122.91,0.1]
[1720148953064,57.8262,123.2,122.91,0.1]
[1720148953291,8.1228,123.11,122.97,8.1318]
[1720148953498,20.3018,123.15,122.91,20.1]
[1720148953712,157.8262,123.2,122.95,100.0]
[1720148953713,57.8262,123.2,122.95,100.0]
[1720148953994,12.1707,123.28,123.04,40.6353]
[1720148954167,0.1,123.29,123.11,20.3063]
[1720148954369,20.378,123.29,123.07,20.3128]
[1720148954600,0.1,123.29,123.08,0.17]
[1720148954813,0.1,123.29,123.1,15.0]
[1720148954972,0.1,123.29,123.17,8.1187]
[1720148955172,0.1,123.29,123.11,0.17]
[1720148955681,0.1,123.29,123.05,12.7331]